lending/lending_fUSD_20260222
["ID","MTS","AMOUNT","RATE_DAILY","PERIOD"]
[406333596,1771758638750,-500.0,0.00015898,2]
[406333597,1771758638759,-500.0,0.00015898,2]
[406333598,1771758638769,-500.0,0.00015898,2]
[406333599,1771758638779,-500.0,0.00015898,2]
[406333600,1771758638789,-500.0,0.00015898,2]
[406333601,1771758638799,-500.0,0.00015898,2]
[406333602,1771758638808,-500.0,0.00015898,2]
[406333604,1771758638818,-500.0,0.00015898,2]
[406333606,1771758638827,-211.14640207,0.00015898,2]
[406333608,1771758638836,-500.0,0.00015898,2]
[406333610,1771758638845,-500.0,0.00015898,2]
[406333612,1771758638855,-500.0,0.00015898,2]
[406333614,1771758638864,-500.0,0.00015898,2]
[406333616,1771758638873,-500.0,0.00015898,2]
[406333618,1771758638881,-500.0,0.00015898,2]
[406333620,1771758638889,-292.84,0.000159,2]
[406333622,1771758638897,-1900.0,0.000159,5]
[406333624,1771758638906,-394.15,0.00016003,2]
[406333626,1771758638914,-1311.0,0.00016015,2]
[406333628,1771758638922,-165.20180217,0.0001606,2]
[406333630,1771758638932,-1500.0,0.00016062,2]
[406333632,1771758638942,-264.39,0.00016064,2]
[406333634,1771758638951,-1045.90522772,0.00016068,2]
[406333636,1771758638961,-500.0,0.00016073,2]
[406333638,1771758638970,-162.52171303,0.00016073,2]
[406333640,1771758638979,-333.94416864,0.00016073,2]
[406333642,1771758638988,-3240.0,0.00016107,2]
[406333644,1771758638997,-394.15,0.00016173,2]
[406333646,1771758639007,-3555.41,0.00016265,2]
[406333648,1771758639016,-200.0,0.00016293,2]
[406333650,1771758639025,-161.86,0.00016438,30]
[406333652,1771758639034,-151.0,0.00016438,2]
[406333654,1771758639043,-151.0,0.00016438,2]
[406333656,1771758639053,-151.0,0.00016438,2]
[406333658,1771758639062,-220.78276103,0.00016438,2]
[406333660,1771758639071,-165.20180217,0.0001652,2]
[406333662,1771758639080,-572.05534161,0.00016566,2]
[406333664,1771758639093,-500.0,0.00016621,2]
[406333681,1771758639255,-510.0,0.00016674,2]
[406333683,1771758639266,-600.0,0.00016678,2]
[406333685,1771758639276,-1850.28596239,0.00016678,2]
[406333687,1771758639286,-250.0,0.00016678,2]
[406333689,1771758639296,-600.0,0.00016678,2]
[406333691,1771758639306,-5000.0,0.00016678,2]
[406333694,1771758639317,-198.66323241,0.00016678,2]
[406333695,1771758639326,-600.0,0.00016678,2]
[406333697,1771758639336,-194.0122658,0.00016678,2]
[406333699,1771758639346,-250.0,0.00016678,2]
[406333701,1771758639356,-600.0,0.00016678,2]
[406333704,1771758639366,-561.36297042,0.00016678,2]
[406333706,1771758639376,-159.52,0.00016712,2]
[406333707,1771758639385,-420.0,0.00016953,2]
[406333709,1771758639394,-165.20180217,0.0001698,2]
[406333711,1771758639407,-150.0,0.00016989,2]
[406333712,1771758639416,-1680.0,0.00017039,2]
[406333714,1771758639426,-393.18616056,0.00017049,2]
[406333716,1771758639436,-693.3919763,0.00017099,2]
[406333718,1771758639444,-300.0,0.00017099,2]
[406333720,1771758639454,-300.0,0.00017099,2]
[406333722,1771758639463,-300.0,0.00017099,2]
[406333724,1771758639473,-300.0,0.00017099,2]
[406333726,1771758639483,-300.0,0.00017099,2]
[406333728,1771758639492,-500.0,0.00017099,2]
[406333730,1771758639501,-300.0,0.00017099,2]
[406333732,1771758639511,-528.61421067,0.00017099,2]
[406333734,1771758639521,-300.0,0.00017099,2]
[406333736,1771758639531,-300.0,0.00017099,2]
[406333738,1771758639539,-300.0,0.00017099,2]
[406333740,1771758639549,-300.0,0.00017099,2]
[406333742,1771758639558,-162.51671768,0.00017099,2]
[406333743,1771758639568,-500.0,0.00017099,2]
[406333745,1771758639577,-500.0,0.00017099,2]
[406333747,1771758639586,-500.0,0.00017099,2]
[406333749,1771758639595,-500.0,0.00017099,2]
[406333751,1771758639604,-500.0,0.00017099,2]
[406333753,1771758639614,-500.0,0.00017099,2]
[406333755,1771758639624,-500.0,0.00017099,2]
[406333757,1771758639633,-500.0,0.00017099,2]
[406333759,1771758639642,-500.0,0.00017099,2]
[406333761,1771758639651,-500.0,0.00017099,2]
[406333763,1771758639661,-500.0,0.00017099,2]
[406333765,1771758639670,-500.0,0.00017099,2]
[406333767,1771758639679,-500.0,0.00017099,2]
[406333769,1771758639689,-500.0,0.00017099,2]
[406333771,1771758639698,-500.0,0.00017099,2]
[406333773,1771758639707,-500.0,0.00017099,2]
[406333775,1771758639716,-500.0,0.00017099,2]
[406333777,1771758639726,-500.0,0.00017099,2]
[406333779,1771758639734,-624.38742817,0.00017099,2]
[406333781,1771758639744,-500.0,0.00017099,2]
[406333783,1771758639753,-500.0,0.00017099,2]
[406333785,1771758639763,-500.0,0.00017099,2]
[406333787,1771758639772,-500.0,0.00017099,2]
[406333789,1771758639781,-500.0,0.00017099,2]
[406333791,1771758639790,-500.0,0.00017099,2]
[406333793,1771758639800,-500.0,0.00017099,2]
[406333795,1771758639809,-500.0,0.00017099,2]
[406333797,1771758639818,-500.0,0.00017099,2]
[406333798,1771758639827,-719.04747942,0.00017154,2]
[406333801,1771758639836,-745.65223616,0.00017209,2]
[406333802,1771758639847,-773.2413689,0.00017264,2]
[406333804,1771758639856,-801.85129955,0.00017319,2]
[406333807,1771758639866,-515.0,0.00017357,2]
[406333808,1771758639875,-831.51979763,0.00017374,2]
[406333809,1771758639885,-168.0,0.00017377,2]
[406333810,1771758639894,-2000.0,0.000174,2]
[406333811,1771758639903,-862.28603014,0.00017429,2]
[406333812,1771758639913,-165.20180217,0.0001744,2]
[406333813,1771758639922,-150.0,0.00017448,2]
[406333814,1771758639931,-150.0,0.00017448,2]
[406333815,1771758639941,-500.0,0.00017448,2]
[406333816,1771758639951,-174.55382438,0.00017448,2]
[406333817,1771758639960,-150.0,0.00017448,2]
[406333818,1771758639969,-500.0,0.00017448,2]
[406333819,1771758639979,-150.0,0.00017448,2]
[406333820,1771758639988,-150.0,0.00017448,2]
[406333821,1771758639997,-894.19061326,0.00017484,2]
[406333822,1771758640007,-515.0,0.00017497,2]
[406333823,1771758640016,-150.0,0.00017503,2]
[406333824,1771758640026,-500.0,0.00017503,2]
[406333825,1771758640036,-150.0,0.00017503,2]
[406333826,1771758640045,-500.0,0.00017503,2]
[406333827,1771758640054,-927.27566595,0.00017539,2]
[406333828,1771758640064,-200.0,0.00017558,2]
[406333829,1771758640073,-500.0,0.00017558,2]
[406333831,1771758640082,-150.0,0.00017558,2]
[406333832,1771758640097,-350.0,0.00017558,2]
[406333833,1771758640107,-961.58486559,0.00017594,2]
[406333834,1771758640116,-2000.0,0.000176,2]
[406333835,1771758640127,-500.0,0.00017612,2]
[406333836,1771758640137,-150.0,0.00017612,2]
[406333837,1771758640146,-572.05534161,0.00017633,2]
[406333838,1771758640155,-2093.73477282,0.0001764,2]
[406333839,1771758640165,-997.16350561,0.00017649,2]
[406333840,1771758640175,-350.0,0.00017667,2]
[406333841,1771758640184,-150.0,0.00017667,2]
[406333842,1771758640194,-165.07743367,0.000177,2]
[406333843,1771758640203,-182.06658955,0.000177,2]
[406333844,1771758640212,-2000.0,0.000177,2]
[406333845,1771758640222,-300.0,0.000177,6]
[406333846,1771758640231,-208.70315985,0.00017722,2]
[406333848,1771758640240,-1301.8518317,0.00017765,2]
[406333849,1771758640250,-2000.0,0.000178,2]
[406333850,1771758640259,-300.0,0.000178,6]
[406333851,1771758640268,-534.61239847,0.00017808,2]
[406333852,1771758640277,-534.61239847,0.00017808,2]
[406333853,1771758640287,-534.61239847,0.00017808,2]
[406333855,1771758640296,-534.61239847,0.00017808,2]
[406333857,1771758640306,-534.61239847,0.00017808,2]
[406333858,1771758640315,-534.61239847,0.00017808,2]
[406333859,1771758640325,-534.61239847,0.00017808,2]
[406333860,1771758640335,-534.61239847,0.00017808,2]
[406333861,1771758640345,-534.61239847,0.00017808,2]
[406333862,1771758640355,-534.61239847,0.00017808,2]
[406333863,1771758640364,-534.61239847,0.00017808,2]
[406333864,1771758640373,-534.61239847,0.00017808,2]
[406333865,1771758640383,-534.61239847,0.00017808,2]
[406333866,1771758640393,-534.61239847,0.00017808,2]
[406333867,1771758640403,-534.61239847,0.00017808,2]
[406333868,1771758640412,-534.61239847,0.00017808,2]
[406333869,1771758640422,-534.61239847,0.00017808,2]
[406333870,1771758640431,-534.61239847,0.00017808,2]
[406333871,1771758640441,-534.61239847,0.00017808,2]
[406333872,1771758640451,-581.39098335,0.00017808,2]
[406333873,1771758640460,-581.39098335,0.00017808,2]
[406333874,1771758640470,-581.39098335,0.00017808,2]
[406333875,1771758640480,-581.39098335,0.00017808,2]
[406333876,1771758640489,-581.39098335,0.00017808,2]
[406333877,1771758640499,-581.39098335,0.00017808,2]
[406333878,1771758640508,-581.39098335,0.00017808,2]
[406333879,1771758640518,-581.39098335,0.00017808,2]
[406333880,1771758640527,-1557.69498,0.0001782,2]
[406333881,1771758640537,-1557.69497,0.0001782,2]
[406333882,1771758640547,-1224.45,0.00017838,2]
[406333883,1771758640556,-259.0,0.00017872,2]
[406333884,1771758640566,-1600.0,0.00017878,2]
[406333885,1771758640576,-779.97233681,0.000179,2]
[406333886,1771758640586,-25000.0,0.000179,3]
[406333887,1771758640595,-2000.0,0.000179,2]
[406333888,1771758640605,-300.0,0.000179,6]
[406333889,1771758640614,-165.20180217,0.000179,2]
[406333890,1771758640623,-353.05953132,0.000179,2]
[406333891,1771758640633,-198.59229092,0.000179,2]
[406333892,1771758640642,-6514.0,0.000179,2]
[406333893,1771758640652,-172703.12965966,0.00018,2]
[406333894,1771758640661,-7519.73980545,0.00018,2]
[406333895,1771758640671,-4232188.99212799,0.00018,2]
[406333896,1771758640705,-1000.0,0.00015585,2]
[406333897,1771758640715,-4110.725,0.00018,2]
[406333898,1771758640726,-1048.02066522,0.00018,2]
[406333899,1771758640738,-341.07,0.00018,2]
[406333900,1771758640750,-326.37913478,0.00018,2]
[406333901,1771758640761,-1559.04062305,0.00018,2]
[406333902,1771758640819,-16338.56465475,0.00018,2]
[406333903,1771758640831,-27352.83940992,0.00018,2]
[406333904,1771758640842,-2987.2,0.00018,2]
[406333905,1771758640854,-2095.592,0.00018,2]
[406333906,1771758640870,-1603.7496992,0.00018,2]
[406333916,1771758643690,-17870.32392074,0.00018,2]
[406333917,1771758643700,-1195.28363858,0.00018,2]
[406333918,1771758643709,-1001.3868342,0.00018,2]
[406333919,1771758643718,-122998.09161534,0.00018,2]
[406333920,1771758643728,-397279.84361092,0.00018,2]
[406333921,1771758643741,-10809.77371646,0.00018,2]
[406333927,1771758646062,-2013.2,0.00018,2]
[406333928,1771758646114,-651.98542784,0.00018,2]
[406333929,1771758646328,-7629.51241606,0.00018,2]
[406333930,1771758646383,-1365.12381804,0.00018,2]
[406333932,1771758646394,-494.61771879,0.00018,2]
[406333945,1771759635642,302.0,0.00013101,2]
[406333946,1771759696846,392.70736777,7.888e-05,2]
[406333954,1771759831378,-2643.22,0.00015006,2]
[406333955,1771759831389,-2411.64893281,0.00015054,2]
[406333956,1771759831398,-150.0,0.00015102,2]
[406333957,1771759831408,-98603.28405727,0.000152,2]
[406333958,1771759831418,-150.0,0.00015248,2]
[406333959,1771759831428,-166.66,0.00015514,2]
[406333960,1771759831438,-1200.0,0.00015574,2]
[406333961,1771759831449,-250.0,0.00015575,2]
[406333962,1771759831463,-600.0,0.00015575,2]
[406333963,1771759831473,-600.0,0.00015575,2]
[406333964,1771759831483,-600.0,0.00015577,2]
[406333965,1771759831492,-300.0,0.00015584,2]
[406333966,1771759831502,-32865.5238,0.00015585,2]
[406333967,1771759831511,-1000.0,0.00015585,2]
[406333968,1771759831520,-200.0,0.00015587,3]
[406333969,1771759831530,-500.0,0.00015597,2]
[406333970,1771759831540,-500.0,0.00015597,2]
[406333972,1771759831550,-500.0,0.00015597,2]
[406333973,1771759831560,-500.0,0.00015597,2]
[406333974,1771759831569,-500.0,0.00015597,2]
[406333975,1771759831578,-500.0,0.00015597,2]
[406333976,1771759831588,-500.0,0.00015597,2]
[406333977,1771759831601,-500.0,0.00015597,2]
[406333978,1771759831610,-500.0,0.00015597,2]
[406333979,1771759831619,-500.0,0.00015597,2]
[406333980,1771759831629,-500.0,0.00015597,2]
[406333982,1771759831639,-500.0,0.00015597,2]
[406333984,1771759831648,-6740.8241,0.000156,2]
[406333986,1771759831659,-151.0,0.00015691,2]
[406333988,1771759831669,-151.0,0.00015691,2]
[406333990,1771759831678,-151.0,0.00015691,2]
[406333992,1771759831687,-151.0,0.00015691,2]
[406333994,1771759831697,-151.0,0.00015691,2]
[406333996,1771759831705,-151.0,0.00015691,2]
[406333998,1771759831715,-151.0,0.00015691,2]
[406334000,1771759831725,-151.0,0.00015691,2]
[406334002,1771759831734,-151.0,0.00015691,2]
[406334003,1771759831744,-151.0,0.00015691,2]
[406334004,1771759831753,-500.0,0.00015691,2]
[406334006,1771759831762,-151.0,0.00015691,2]
[406334007,1771759831771,-500.0,0.00015691,2]
[406334008,1771759831781,-151.0,0.00015691,2]
[406334009,1771759831791,-500.0,0.00015691,2]
[406334010,1771759831801,-500.0,0.00015691,2]
[406334011,1771759831810,-151.0,0.00015691,2]
[406334012,1771759831820,-500.0,0.00015691,2]
[406334013,1771759831829,-500.0,0.00015691,2]
[406334014,1771759831838,-151.0,0.00015691,2]
[406334015,1771759831847,-500.0,0.00015691,2]
[406334016,1771759831857,-500.0,0.00015691,2]
[406334017,1771759831866,-151.0,0.00015691,2]
[406334018,1771759831876,-115.88047109,0.00015691,2]
[406334019,1771759831898,-384.11952891,0.00015691,2]
[406334020,1771759831908,-363.25653508,0.00015691,2]
[406334021,1771759831919,-136.74346492,0.00015691,2]
[406334022,1771759831928,-151.0,0.00015691,2]
[406334023,1771759831939,-252.93631358,0.00015691,2]
[406334030,1771759837402,-247.06368642,0.00015691,2]
[406334032,1771759837412,-188.45401519,0.00015691,2]
[406334033,1771759837424,-311.54598481,0.00015691,2]
[406334034,1771759837444,-151.0,0.00015691,2]
[406334035,1771759837456,-535.47988853,0.00015691,2]
[406334036,1771759837467,-500.0,0.00015691,2]
[406334037,1771759837477,-151.0,0.00015691,2]
[406334038,1771759837487,-500.0,0.00015691,2]
[406334039,1771759837496,-151.0,0.00015691,2]
[406334040,1771759837506,-151.0,0.00015691,2]
[406334041,1771759837516,-500.0,0.00015691,2]
[406334042,1771759837527,-500.0,0.00015691,2]
[406334043,1771759837538,-304.47590648,0.00015691,2]
[406334044,1771759837549,-500.0,0.00015691,2]
[406334045,1771759837560,-283.03296635,0.00015691,2]
[406334046,1771759837571,-200.0,0.00015691,2]
[406334047,1771759837582,-170.31988359,0.00015691,2]
[406334048,1771759837597,-509.07170712,0.00015691,2]
[406334049,1771759837607,-151.0,0.00015691,2]
[406334050,1771759837619,-151.0,0.00015691,2]
[406334051,1771759837631,-151.0,0.00015691,2]
[406334052,1771759837641,-151.0,0.00015691,2]
[406334053,1771759837652,-151.0,0.00015691,2]
[406334054,1771759837663,-151.0,0.00015691,2]
[406334055,1771759837675,-151.0,0.00015691,2]
[406334056,1771759837685,-151.0,0.00015691,2]
[406334057,1771759837696,-151.0,0.00015691,2]
[406334058,1771759837707,-151.0,0.00015691,2]
[406334059,1771759837718,-151.0,0.00015691,2]
[406334060,1771759837729,-241.06,0.000157,2]
[406334061,1771759837740,-9999.99,0.000157,2]
[406334062,1771759837751,-9999.99,0.000157,2]
[406334063,1771759837762,-3025.61754188,0.000157,2]
[406334064,1771759837775,-6974.37245812,0.000157,2]
[406334065,1771759837786,-9999.99,0.000157,2]
[406334067,1771759837796,-999.99,0.000157,2]
[406334069,1771759837806,-150.99,0.000157,2]
[406334071,1771759837817,-299.99,0.000157,2]
[406334073,1771759837827,-150.99,0.000157,2]
[406334075,1771759837837,-500.0,0.000157,2]
[406334077,1771759837848,-500.0,0.00015773,2]
[406334079,1771759837859,-1852.42,0.00015779,2]
[406334081,1771759837869,-308.0,0.0001595,2]
[406334083,1771759837879,-251.0,0.0001597,2]
[406334085,1771759837889,-500.0,0.00015974,2]
[406334087,1771759837899,-166.66,0.00016027,2]
[406334089,1771759837909,-516.45912901,0.00016073,2]
[406334091,1771759837920,-500.0,0.00016073,2]
[406334093,1771759837930,-5080.61,0.00016073,2]
[406334095,1771759837941,-913.46203233,0.00016099,2]
[406334097,1771759837950,-913.46203233,0.00016099,2]
[406334099,1771759837960,-913.46203233,0.00016099,2]
[406334101,1771759837970,-913.46203233,0.00016099,2]
[406334103,1771759837980,-913.46203233,0.00016099,2]
[406334105,1771759837990,-913.46203233,0.00016099,2]
[406334107,1771759838000,-913.46203233,0.00016099,2]
[406334109,1771759838010,-913.46203233,0.00016099,2]
[406334111,1771759838019,-913.46203233,0.00016099,2]
[406334113,1771759838029,-913.46203233,0.00016099,2]
[406334115,1771759838039,-913.46203233,0.00016099,2]
[406334117,1771759838054,-913.46203233,0.00016099,2]
[406334119,1771759838064,-913.46203233,0.00016099,2]
[406334121,1771759838075,-913.46203233,0.00016099,2]
[406334123,1771759838085,-913.46203233,0.00016099,2]
[406334125,1771759838096,-913.46203233,0.00016099,2]
[406334127,1771759838106,-913.46203233,0.00016099,2]
[406334129,1771759838116,-913.46203233,0.00016099,2]
[406334131,1771759838127,-913.46203233,0.00016099,2]
[406334133,1771759838137,-913.46203233,0.00016099,2]
[406334135,1771759838148,-913.46203233,0.00016099,2]
[406334137,1771759838159,-913.46203233,0.00016099,2]
[406334139,1771759838169,-913.46203233,0.00016099,2]
[406334141,1771759838180,-913.46203233,0.00016099,2]
[406334143,1771759838189,-913.46203233,0.00016099,2]
[406334145,1771759838200,-913.46203233,0.00016099,2]
[406334147,1771759838211,-913.46203233,0.00016099,2]
[406334149,1771759838221,-913.46203233,0.00016099,2]
[406334151,1771759838231,-913.46203233,0.00016099,2]
[406334153,1771759838242,-913.46203233,0.00016099,2]
[406334155,1771759838254,-913.46203233,0.00016099,2]
[406334157,1771759838266,-913.46203233,0.00016099,2]
[406334160,1771759838278,-913.46203233,0.00016099,2]
[406334162,1771759838288,-913.46203233,0.00016099,2]
[406334164,1771759838298,-913.46203233,0.00016099,2]
[406334166,1771759838309,-913.46203233,0.00016099,2]
[406334168,1771759838319,-913.46203233,0.00016099,2]
[406334170,1771759838331,-913.46203233,0.00016099,2]
[406334172,1771759838341,-913.46203233,0.00016099,2]
[406334174,1771759838351,-913.46203233,0.00016099,2]
[406334176,1771759838363,-913.46203233,0.00016099,2]
[406334178,1771759838374,-913.46203233,0.00016099,2]
[406334180,1771759838384,-913.46203233,0.00016099,2]
[406334182,1771759838395,-913.46203233,0.00016099,2]
[406334184,1771759838405,-913.46203233,0.00016099,2]
[406334186,1771759838415,-913.46203233,0.00016099,2]
[406334188,1771759838426,-913.46203233,0.00016099,2]
[406334190,1771759838436,-913.46203233,0.00016099,2]
[406334192,1771759838447,-913.46203233,0.00016099,2]
[406334194,1771759838458,-913.46203233,0.00016099,2]
[406334196,1771759838468,-913.46203233,0.00016099,2]
[406334198,1771759838478,-913.46203233,0.00016099,2]
[406334200,1771759838489,-913.46203233,0.00016099,2]
[406334203,1771759838499,-913.46203233,0.00016099,2]
[406334205,1771759838510,-913.46203233,0.00016099,2]
[406334207,1771759838521,-913.46203233,0.00016099,2]
[406334209,1771759838531,-2569.11196594,0.00016099,2]
[406334211,1771759838540,-2569.11196594,0.00016099,2]
[406334213,1771759838549,-2569.11196594,0.00016099,2]
[406334215,1771759838559,-2569.11196594,0.00016099,2]
[406334216,1771759838568,-2569.11196594,0.00016099,2]
[406334219,1771759838578,-2569.11196594,0.00016099,2]
[406334220,1771759838590,-2569.11196594,0.00016099,2]
[406334223,1771759838602,-2569.11196594,0.00016099,2]
[406334224,1771759838611,-2569.11196594,0.00016099,2]
[406334227,1771759838620,-2569.11196594,0.00016099,2]
[406334229,1771759838635,-2569.11196594,0.00016099,2]
[406334231,1771759838645,-2569.11196594,0.00016099,2]
[406334233,1771759838655,-20242.57775553,0.000161,2]
[406334235,1771759838665,-383.0,0.00016194,2]
[406334237,1771759838675,-32072.48909193,0.000162,5]
[406334239,1771759838685,-898.0,0.00016214,2]
[406334241,1771759838695,-217.0,0.00016227,2]
[406334243,1771759838704,-200.0,0.00016239,2]
[406334245,1771759838714,-1000.0,0.00016321,2]
[406334247,1771759838723,-241.0,0.00016388,2]
[406334249,1771759838734,-200.0,0.00016392,2]
[406334272,1771759838969,-4829.65,0.00016412,2]
[406334273,1771759838981,-1245.0,0.00016435,2]
[406334274,1771759838992,-1000.0,0.00016449,2]
[406334275,1771759839002,-1126.0,0.00016468,2]
[406334276,1771759839013,-250.0,0.00016507,2]
[406334277,1771759839024,-194.0122658,0.00016507,2]
[406334278,1771759839034,-5000.0,0.00016507,2]
[406334279,1771759839045,-166.66,0.00016539,2]
[406334280,1771759839055,-1329.0,0.00016584,2]
[406334281,1771759839066,-1027.90522772,0.00016617,2]
[406334282,1771759839076,-500.0,0.00016621,2]
[406334283,1771759839086,-1449.52,0.00016687,2]
[406334284,1771759839097,-469.0,0.00016706,2]
[406334285,1771759839108,-512.3762407,0.00016736,2]
[406334286,1771759839119,-1000.0,0.00016868,2]
[406334287,1771759839134,-10617.52788428,0.00016923,2]
[406334288,1771759839145,-2034.0067,0.00016924,2]
[406334289,1771759839155,-32701.4321,0.00016924,2]
[406334290,1771759839165,-250.0,0.0001696,2]
[406334292,1771759839175,-200.0,0.0001696,2]
[406334294,1771759839186,-250.0,0.0001696,2]
[406334296,1771759839196,-250.0,0.0001696,2]
[406334298,1771759839207,-200.0,0.0001696,2]
[406334300,1771759839217,-250.0,0.0001696,2]
[406334302,1771759839227,-199.66892992,0.0001696,2]
[406334304,1771759839236,-250.0,0.0001696,2]
[406334305,1771759839247,-250.0,0.0001696,2]
[406334306,1771759839257,-500.0,0.0001696,2]
[406334307,1771759839267,-250.0,0.0001696,2]
[406334308,1771759839277,-250.0,0.0001696,2]
[406334309,1771759839288,-500.0,0.0001696,2]
[406334310,1771759839299,-250.0,0.0001696,2]
[406334311,1771759839309,-250.0,0.0001696,2]
[406334312,1771759839320,-500.0,0.0001696,2]
[406334313,1771759839330,-250.0,0.0001696,2]
[406334314,1771759839340,-199.12107742,0.0001696,2]
[406334315,1771759839352,-500.0,0.0001696,2]
[406334316,1771759839363,-250.0,0.0001696,2]
[406334317,1771759839374,-500.0,0.0001696,2]
[406334318,1771759839385,-250.0,0.0001696,2]
[406334319,1771759839395,-203.84209265,0.0001696,2]
[406334320,1771759839406,-500.0,0.0001696,2]
[406334321,1771759839417,-257.87287478,0.0001696,2]
[406334322,1771759839429,-500.0,0.0001696,2]
[406334323,1771759839439,-624.38742817,0.0001696,2]
[406334324,1771759839449,-500.0,0.0001696,2]
[406334325,1771759839459,-500.0,0.0001696,2]
[406334326,1771759839469,-500.0,0.0001696,2]
[406334327,1771759839479,-500.0,0.0001696,2]
[406334328,1771759839488,-500.0,0.0001696,2]
[406334329,1771759839499,-500.0,0.0001696,2]
[406334330,1771759839508,-500.0,0.0001696,2]
[406334331,1771759839518,-500.0,0.0001696,2]
[406334333,1771759839528,-500.0,0.0001696,2]
[406334334,1771759839541,-500.0,0.0001696,2]
[406334335,1771759839551,-500.0,0.0001696,2]
[406334336,1771759839560,-500.0,0.0001696,2]
[406334337,1771759839570,-500.0,0.0001696,2]
[406334339,1771759839580,-500.0,0.0001696,2]
[406334340,1771759839592,-500.0,0.0001696,2]
[406334341,1771759839601,-165.87554275,0.0001696,2]
[406334342,1771759839611,-500.0,0.0001696,2]
[406334343,1771759839620,-500.0,0.0001696,2]
[406334344,1771759839630,-500.0,0.0001696,2]
[406334345,1771759839640,-500.0,0.0001696,2]
[406334346,1771759839650,-500.0,0.0001696,2]
[406334347,1771759839662,-500.0,0.0001696,2]
[406334348,1771759839672,-500.0,0.0001696,2]
[406334349,1771759839682,-500.0,0.0001696,2]
[406334350,1771759839692,-500.0,0.0001696,2]
[406334351,1771759839703,-500.0,0.0001696,2]
[406334352,1771759839713,-500.0,0.0001696,2]
[406334353,1771759839725,-500.0,0.0001696,2]
[406334354,1771759839737,-693.3919763,0.0001696,2]
[406334355,1771759839746,-500.0,0.0001696,2]
[406334356,1771759839756,-500.0,0.0001696,2]
[406334357,1771759839766,-151.0,0.0001696,2]
[406334358,1771759839776,-500.0,0.0001696,2]
[406334359,1771759839786,-500.0,0.0001696,2]
[406334360,1771759839795,-500.0,0.0001696,2]
[406334361,1771759839805,-500.0,0.0001696,2]
[406334362,1771759839814,-300.0,0.0001696,2]
[406334363,1771759839824,-300.0,0.0001696,2]
[406334364,1771759839833,-300.0,0.0001696,2]
[406334365,1771759839842,-300.0,0.0001696,2]
[406334366,1771759839852,-300.0,0.0001696,2]
[406334367,1771759839862,-300.0,0.0001696,2]
[406334368,1771759839871,-300.0,0.0001696,2]
[406334369,1771759839881,-300.0,0.0001696,2]
[406334370,1771759839891,-300.0,0.0001696,2]
[406334371,1771759839901,-300.0,0.0001696,2]
[406334372,1771759839913,-300.0,0.0001696,2]
[406334373,1771759839924,-31935.97643602,0.00017,2]
[406334374,1771759839937,-719.04747942,0.00017015,2]
[406334375,1771759839947,-233.11431957,0.00017015,2]
[406334376,1771759839957,-165.20180217,0.00017021,2]
[406334377,1771759839967,-560.61348529,0.00017043,2]
[406334378,1771759839976,-166.66,0.00017051,2]
[406334379,1771759839986,-745.65223616,0.0001707,2]
[406334380,1771759839995,-1680.0,0.00017121,2]
[406334381,1771759840006,-773.2413689,0.00017125,2]
[406334382,1771759840015,-2025.05533002,0.00017131,2]
[406334383,1771759840026,-360.24117357,0.00017132,2]
[406334384,1771759840037,-600.0,0.00017133,2]
[406334385,1771759840047,-600.0,0.00017133,2]
[406334386,1771759840057,-250.0,0.00017133,2]